[Event "2nd German Women BLS 2024-25"]
[Site "Germany"]
[Date "2025.01.25"]
[Round "3.1"]
[White "Hrebenshchykova, Yelyzaveta"]
[Black "Schmidt, Jessica"]
[Result "1-0"]
[Annotator "TA"]
[ECO "C92"]
[WhiteElo "2280"]
[BlackElo "2210"]
[PlyCount "53"]
[EventDate "2025.01.22"]
[EventType "team-tourn"]
[EventCountry "GER"]
[SourceTitle "playchess.com"]
[Source "ChessBase"]
[SourceQuality "1"]
[WhiteTeam "SC NT Nürnberg"]
[BlackTeam "Karlsruher SF"]
[TimeControl "40/5400+30:1800+30"]

{[%evp 18,53,36,29,45,43,46,39,62,51,57,45,66,66,64,49,64,52,104,45,43,39,32,36,72,62,56,70,89,96,137,134,176,168,181,165,833,818]} 1. e4 {[%emt 0:00:03]} e5 {[%emt 0:00:16]} 2. Nf3 {[%emt 0:00:05]} Nc6 {[%emt 0:00:07]} 3. Bb5 {[%emt 0:00:51]} a6 {[%emt 0:00:19]} 4. Ba4 {[%emt 0:00:04]} Nf6 {[%emt 0:01:35]} 5. O-O {[%emt 0:02:52]} b5 {[%emt 0:03:30]} 6. Bb3 {[%emt 0:00:05]} Be7 {[%emt 0:00:12]} 7. d4 {[%emt 0:03:32]} d6 {[%emt 0:05:35]} 8. c3 {[%emt 0:01:41]} O-O {[%emt 0:00:44]} 9. h3 {[%emt 0:07:02]} Bb7 {[%emt 0:00:58]} 10. Re1 {[%emt 0:00:22]} Rc8 {[%emt 0:10:39] C92: Closed Ruy Lopez: 9...Be6, Karpov and Flohr-Zaitsev Variations.} 11. a4 {[%emt 0:00:30]} exd4 {[%emt 0:00:30]} 12. axb5 {[%emt 0:00:30]} axb5 {[%emt 0:00:30] White is slightly better.} 13. cxd4 {[%emt 0:00:30]} (13. Nxd4 Nxd4 14. cxd4 Bxe4 $15 (14... Nxe4 15. Ra7 $11)) 13... Nb4 {[%emt 0:00:30]} 14. d5 $146 {[%emt 0:00:30]} (14. Nc3 c5 15. dxc5 dxc5 16. e5 Nfd5 17. Nxb5 c4 18. Ba4 {½-½ Ariel,D (2270)-Meeres,M (2290) World op 23rd 1995 (2)}) 14... c5 {[%emt 0:00:30]} 15. dxc6 {[%emt 0:00:30]} Nxc6 {[%cal Bb4c6,Bc6a5,Ba5c4,Bc4e5][%mdl 32]} 16. Nc3 {White is much more active.} Na5 {[%emt 0:49:45]} 17. Bd5 {[%emt 0:42:23]} Bxd5 {[%emt 0:08:09]} (17... b4 $14 18. Bxb7 Nxb7) 18. Nxd5 {[%emt 0:01:43]} (18. exd5 $16 b4 19. Na2) 18... Nxd5 $14 {[%emt 0:00:36]} 19. Qxd5 {[%emt 0:00:04]} Rc5 {[%emt 0:05:04]} 20. Qd1 {[%emt 0:05:52] [#] b4 would now be deadly.} Nc4 {[%emt 0:00:40]} 21. b3 {[%emt 0:02:17]} Ne5 {[%emt 0:05:05]} 22. Nd4 {[%emt 0:06:43]} b4 {[%emt 0:01:20] Dodges Ba3} 23. Nf5 {[%emt 0:07:56]} Re8 {[%emt 0:00:25]} 24. Be3 {[%emt 0:07:57]} Rb5 {[%emt 0:00:40]} 25. Ra6 {[%emt 0:04:18]} d5 {[%emt 0:01:01]} 26. Qe2 {[%emt 0:02:56]} Ra5 {[%emt 0:01:34] [#]} (26... Rb8) 27. Bb6 {[%emt 0:00:49] Weighted Error Value: White=0.07 (flawless) /Black=0.56  Mistake:       	White=1     	Black=2      Inaccurate:     	---       	Black=3      OK:         	White=8     	Black=5      Best:        	White=2     	---} 1-0

[Event "2nd German Women BLS 2024-25"]
[Site "Germany"]
[Date "2025.01.25"]
[Round "3.2"]
[White "Doll, Rebecca"]
[Black "Birkholz, Olga"]
[Result "1/2-1/2"]
[Annotator "NA RC"]
[ECO "B92"]
[WhiteElo "1987"]
[BlackElo "2018"]
[PlyCount "66"]
[EventDate "2025.01.22"]
[EventType "team-tourn"]
[EventCountry "GER"]
[SourceTitle "playchess.com"]
[Source "ChessBase"]
[SourceQuality "1"]
[WhiteTeam "Karlsruher SF"]
[BlackTeam "SC NT Nürnberg"]
[TimeControl "40/5400+30:1800+30"]

1. e4 {[%emt 0:00:03]} c5 {[%emt 0:00:04]} 2. Nf3 {[%emt 0:00:06]} d6 {[%emt 0:00:03]} 3. d4 {[%emt 0:00:14]} cxd4 {[%emt 0:00:01]} 4. Nxd4 {[%emt 0:00:07]} Nf6 {[%emt 0:00:01]} 5. Nc3 {[%emt 0:00:25]} a6 {[%emt 0:00:01]} 6. Be2 {[%emt 0:00:48]} e5 {[%emt 0:00:10]} 7. Nf3 {[%emt 0:00:05]} Be7 {[%emt 0:00:31]} 8. Bg5 {[%emt 0:00:18]} Be6 {[%emt 0:00:18]} 9. Bxf6 {[%emt 0:01:37]} Bxf6 {[%emt 0:00:20]} 10. Nd5 {[%emt 0:03:13]} Nc6 {[%emt 0:01:16]} 11. O-O {[%emt 0:03:50]} Bxd5 {[%emt 0:07:30]} 12. Qxd5 {[%emt 0:01:58]} O-O {[%emt 0:00:13]} 13. c3 {[%emt 0:08:40]} Qb6 {[%emt 0:02:24]} 14. Qb3 {[%emt 0:19:00]} Qc7 {[%emt 0:00:30]} 15. Rfd1 {[%emt 0:00:30]} Rad8 {[%emt 0:00:30]} 16. a4 {[%emt 0:00:30]} g6 {[%emt 0:00:30]} 17. Nd2 {[%emt 0:00:30]} Bg5 {[%emt 0:00:30]} 18. Nc4 {[%emt 0:00:30]} Kg7 {[%emt 0:00:30]} 19. a5 {[%emt 0:00:30]} f5 {[%emt 0:00:30]} 20. exf5 {[%emt 0:00:30]} Rxf5 21. Bf3 {[%emt 0:32:17]} e4 {[%emt 0:34:08]} 22. Bg4 {[%emt 0:13:34]} Rb5 {[%emt 0:00:37]} 23. Qc2 {[%emt 0:04:11]} d5 {[%emt 0:01:23]} 24. Na3 {[%emt 0:02:48]} Rc5 {[%emt 0:05:34]} 25. Qe2 {[%emt 0:00:31]} Ne5 {[%emt 0:01:53]} 26. Nc2 {[%emt 0:03:03]} Nxg4 {[%emt 0:04:10]} 27. Qxg4 {[%emt 0:00:09]} Bf6 {[%emt 0:00:12]} 28. Nd4 {[%emt 0:01:31]} Bxd4 {[%emt 0:01:16]} 29. Rxd4 {[%emt 0:00:10]} Rxa5 {[%emt 0:00:22]} 30. Rad1 {[%emt 0:02:33]} Rc5 {[%emt 0:01:50]} 31. Qg5 {[%emt 0:01:13]} h6 {[%emt 0:09:29]} 32. Qe3 {[%emt 0:00:04]} b5 {[%emt 0:01:48]} 33. h3 {[%emt 0:00:12]} Rc4 {[%emt 0:15:32]} 1/2-1/2

[Event "2nd German Women BLS 2024-25"]
[Site "Germany"]
[Date "2025.01.25"]
[Round "3.3"]
[White "Albayrak, Nese Pinar"]
[Black "Haug, Mara"]
[Result "0-1"]
[Annotator "NA RC"]
[ECO "B34"]
[WhiteElo "1871"]
[BlackElo "1948"]
[PlyCount "62"]
[EventDate "2025.01.22"]
[EventType "team-tourn"]
[EventCountry "GER"]
[SourceTitle "playchess.com"]
[Source "ChessBase"]
[SourceQuality "1"]
[WhiteTeam "SC NT Nürnberg"]
[BlackTeam "Karlsruher SF"]
[TimeControl "40/5400+30:1800+30"]

1. e4 {[%emt 0:00:03]} c5 {[%emt 0:00:07]} 2. Nf3 {[%emt 0:00:05]} Nc6 {[%emt 0:00:07]} 3. d4 {[%emt 0:00:04]} cxd4 {[%emt 0:00:06]} 4. Nxd4 {[%emt 0:00:05]} g6 {[%emt 0:00:09]} 5. Nc3 {[%emt 0:00:07]} Bg7 {[%emt 0:00:08]} 6. Be3 {[%emt 0:00:24]} Nf6 {[%emt 0:00:11]} 7. Nb3 {[%emt 0:04:00]} O-O {[%emt 0:01:02]} 8. Qd2 {[%emt 0:03:40]} a6 {[%emt 0:08:03]} 9. f3 {[%emt 0:05:47]} b5 {[%emt 0:02:00]} 10. O-O-O {[%emt 0:03:45]} Ne5 {[%emt 0:10:00]} 11. Nd5 {[%emt 0:00:30]} Nxd5 {[%emt 0:00:30]} 12. Qxd5 {[%emt 0:00:30]} Rb8 {[%emt 0:00:30]} 13. h4 {[%emt 0:00:30]} d6 {[%emt 0:00:30]} 14. h5 {[%emt 0:00:30]} Be6 15. Qd2 Nc4 {[%emt 0:27:34]} 16. Bxc4 {[%emt 0:44:12]} bxc4 {[%emt 0:00:13]} 17. Nd4 {[%emt 0:16:59]} Qb6 {[%emt 0:10:26]} 18. c3 {[%emt 0:00:52]} Qa5 {[%emt 0:06:01]} 19. Nc6 {[%emt 0:08:23]} Qxa2 {[%emt 0:00:14]} 20. Nxb8 {[%emt 0:00:48]} Rxb8 {[%emt 0:00:06]} 21. Qc2 {[%emt 0:01:28]} Rb3 {[%emt 0:18:15]} 22. Bd2 {[%emt 0:07:26]} d5 {[%emt 0:04:19]} 23. Qb1 {[%emt 0:00:32]} Qa4 {[%emt 0:00:34]} 24. hxg6 {[%emt 0:00:53]} fxg6 {[%emt 0:01:22]} 25. g4 {[%emt 0:00:40]} d4 {[%emt 0:02:29]} 26. Bh6 {[%emt 0:00:38]} Bxh6+ {[%emt 0:05:23]} 27. Rxh6 {[%emt 0:00:02]} dxc3 {[%emt 0:00:29]} 28. e5 {[%emt 0:00:54]} cxb2+ {[%emt 0:01:47]} 29. Kd2 {[%emt 0:00:01]} Rd3+ {[%emt 0:00:20]} 30. Ke2 {[%emt 0:00:08]} Qxd1+ {[%emt 0:00:16]} 31. Qxd1 {[%emt 0:00:20]} Rxd1 {[%emt 0:00:05]} 0-1

[Event "2nd German Women BLS 2024-25"]
[Site "Germany"]
[Date "2025.01.25"]
[Round "3.4"]
[White "Scheynin, Julia"]
[Black "Albayrak, Berrak"]
[Result "0-1"]
[Annotator "NA RC"]
[ECO "A00"]
[WhiteElo "1965"]
[BlackElo "1843"]
[PlyCount "56"]
[EventDate "2025.01.22"]
[EventType "team-tourn"]
[EventCountry "GER"]
[SourceTitle "playchess.com"]
[Source "ChessBase"]
[SourceQuality "1"]
[WhiteTeam "Karlsruher SF"]
[BlackTeam "SC NT Nürnberg"]
[TimeControl "40/5400+30:1800+30"]

1. e4 {[%emt 0:00:03]} d6 {[%emt 0:00:10]} 2. d3 {[%emt 0:00:19]} g6 {[%emt 0:00:21]} 3. g3 {[%emt 0:00:12]} Bg7 {[%emt 0:00:21]} 4. Bg2 {[%emt 0:00:05]} e5 {[%emt 0:01:16]} 5. Ne2 Ne7 {[%emt 0:23:02]} 6. O-O {[%emt 0:04:59]} O-O {[%emt 0:01:16]} 7. c3 {[%emt 0:39:01]} c6 {[%emt 0:00:30]} 8. Qc2 {[%emt 0:00:30]} Be6 {[%emt 0:00:30]} 9. f4 {[%emt 0:00:30]} f5 {[%emt 0:00:30]} 10. fxe5 {[%emt 0:00:30]} dxe5 {[%emt 0:00:30]} 11. Be3 {[%emt 0:00:30]} Nd7 {[%emt 0:00:30]} 12. Nd2 Nf6 {[%emt 0:35:58]} 13. Kh1 {[%emt 0:01:00]} Ng4 {[%emt 0:02:58]} 14. Bg1 {[%emt 0:00:04]} Nc8 {[%emt 0:02:33]} 15. h3 {[%emt 0:04:13]} Nf6 {[%emt 0:04:26]} 16. Nb3 {[%emt 0:01:34]} Nd6 {[%emt 0:03:22]} 17. Nc5 {[%emt 0:10:55]} Bf7 {[%emt 0:01:45]} 18. b4 {[%emt 0:04:45]} b6 {[%emt 0:02:26]} 19. Nb3 {[%emt 0:00:24]} fxe4 {[%emt 0:08:59]} 20. dxe4 {[%emt 0:00:09]} Qc8 {[%emt 0:02:35]} 21. Rad1 {[%emt 0:05:57]} Ndxe4 {[%emt 0:01:47]} 22. Kh2 {[%emt 0:03:00]} Ng5 {[%emt 0:01:17]} 23. Be3 {[%emt 0:01:43]} Ne6 {[%emt 0:01:58]} 24. Rd6 {[%emt 0:00:52]} Nd5 {[%emt 0:00:59]} 25. Bxd5 {[%emt 0:03:33]} cxd5 {[%emt 0:00:05]} 26. Rxd5 {[%emt 0:00:03]} Ng5 {[%emt 0:01:45]} 27. Rdd1 {[%emt 0:00:36]} Qxh3+ {[%emt 0:00:35]} 28. Kg1 {[%emt 0:00:01]} Bd5 {[%emt 0:00:50]} 0-1

[Event "2nd German Women BLS 2024-25"]
[Site "Germany"]
[Date "2025.01.25"]
[Round "3.5"]
[White "Braeuer, Vanessa"]
[Black "Basovskiy, Jana"]
[Result "1-0"]
[Annotator "NA RC"]
[ECO "E30"]
[WhiteElo "1935"]
[BlackElo "1910"]
[PlyCount "69"]
[EventDate "2025.01.22"]
[EventType "team-tourn"]
[EventCountry "GER"]
[SourceTitle "playchess.com"]
[Source "ChessBase"]
[SourceQuality "1"]
[WhiteTeam "SC NT Nürnberg"]
[BlackTeam "Karlsruher SF"]
[TimeControl "40/5400+30:1800+30"]

1. Nf3 {[%emt 0:00:03]} Nf6 {[%emt 0:00:04]} 2. c4 {[%emt 0:00:18]} Nc6 {[%emt 0:01:59]} 3. d4 {[%emt 0:00:31]} e6 {[%emt 0:00:04]} 4. Nc3 {[%emt 0:01:41]} Bb4 {[%emt 0:00:09]} 5. Bg5 {[%emt 0:01:41]} h6 {[%emt 0:05:00]} 6. Bxf6 {[%emt 0:05:14]} Qxf6 {[%emt 0:01:37]} 7. e4 {[%emt 0:00:39]} e5 {[%emt 0:00:56]} 8. d5 {[%emt 0:00:40]} Nd4 {[%emt 0:10:07]} 9. Be2 {[%emt 0:01:29]} O-O {[%emt 0:02:13]} 10. O-O {[%emt 0:01:02]} Nxf3+ {[%emt 0:40:57]} 11. Bxf3 {[%emt 0:00:30]} Bc5 {[%emt 0:00:30]} 12. Nb5 {[%emt 0:00:30]} c6 {[%emt 0:00:30]} 13. Nc3 {[%emt 0:00:30]} d6 {[%emt 0:00:30]} 14. a3 {[%emt 0:00:30]} Qg5 {[%emt 0:00:30]} 15. b4 {[%emt 0:00:30]} Bd4 {[%emt 0:00:30]} 16. Rc1 {[%emt 0:00:30]} a5 {[%emt 0:00:30]} 17. Ne2 {[%emt 0:00:30]} Bb2 {[%emt 0:00:30]} 18. Rb1 {[%emt 0:00:30]} Bxa3 {[%emt 0:00:30]} 19. Qa4 {[%emt 0:00:30]} Bxb4 {[%emt 0:00:30]} 20. Rxb4 {[%emt 0:00:30]} axb4 {[%emt 0:00:30]} 21. Qxa8 {[%emt 0:00:30]} Bg4 {[%emt 0:00:30]} 22. Qxb7 {[%emt 0:00:30]} Bxf3 23. Ng3 {[%emt 0:23:42]} Bg4 {[%emt 0:01:00]} 24. dxc6 {[%emt 0:05:28]} h5 {[%emt 0:00:55]} 25. Qxb4 {[%emt 0:18:31]} h4 {[%emt 0:01:01]} 26. f3 {[%emt 0:14:10]} Be6 {[%emt 0:18:21]} 27. Nf5 {[%emt 0:02:48]} Ra8 {[%emt 0:02:53]} 28. Kh1 {[%emt 0:04:37]} h3 {[%emt 0:03:10]} 29. g3 {[%emt 0:01:43]} Bxc4 {[%emt 0:09:04]} 30. f4 {[%emt 0:11:13]} exf4 {[%emt 0:00:00]} 31. Qxc4 {[%emt 0:00:07]} fxg3 {[%emt 0:00:03]} 32. Nxg3 {[%emt 0:00:10]} Qd2 {[%emt 0:00:04]} 33. Qxf7+ {[%emt 0:00:29]} Kh7 {[%emt 0:00:04]} 34. Qh5+ {[%emt 0:00:23]} Kg8 {[%emt 0:00:05]} 35. Qd5+ {[%emt 0:00:35]} 1-0

[Event "2nd German Women BLS 2024-25"]
[Site "Germany"]
[Date "2025.01.25"]
[Round "3.6"]
[White "Grining, Maria"]
[Black "Albayrak, Aylin"]
[Result "0-1"]
[Annotator "NA RC"]
[ECO "A48"]
[WhiteElo "1873"]
[BlackElo "1750"]
[PlyCount "70"]
[EventDate "2025.01.22"]
[EventType "team-tourn"]
[EventCountry "GER"]
[SourceTitle "playchess.com"]
[Source "ChessBase"]
[SourceQuality "1"]
[WhiteTeam "Karlsruher SF"]
[BlackTeam "SC NT Nürnberg"]
[TimeControl "40/5400+30:1800+30"]

1. d4 {[%emt 0:00:03]} Nf6 {[%emt 0:00:10]} 2. Nf3 {[%emt 0:00:04]} g6 {[%emt 0:00:07]} 3. e3 {[%emt 0:00:07]} Bg7 {[%emt 0:00:08]} 4. Bd3 {[%emt 0:00:07]} O-O {[%emt 0:00:21]} 5. b3 {[%emt 0:00:08]} Nc6 {[%emt 0:00:55]} 6. Bb2 {[%emt 0:00:19]} d6 {[%emt 0:01:04]} 7. a3 {[%emt 0:08:28]} a6 {[%emt 0:01:28]} 8. O-O {[%emt 0:00:23]} Qe8 {[%emt 0:05:53]} 9. e4 {[%emt 0:47:00]} e5 {[%emt 0:00:30]} 10. d5 {[%emt 0:00:30]} Ne7 {[%emt 0:00:30]} 11. c4 {[%emt 0:00:30]} Nh5 {[%emt 0:00:30]} 12. b4 {[%emt 0:00:30]} f5 {[%emt 0:00:30]} 13. c5 {[%emt 0:00:30]} Nf4 {[%emt 0:00:30]} 14. Bc2 {[%emt 0:00:30]} h5 {[%emt 0:00:30]} 15. Nbd2 {[%emt 0:00:30]} Bh6 {[%emt 0:00:30]} 16. Nc4 {[%emt 0:00:30]} fxe4 {[%emt 0:00:30]} 17. Bxe4 {[%emt 0:00:30]} Bf5 {[%emt 0:00:30]} 18. Bxf5 {[%emt 0:00:30]} gxf5 {[%emt 0:00:30]} 19. g3 Qg6 {[%emt 0:32:33]} 20. Nh4 {[%emt 0:07:37]} Qf6 {[%emt 0:03:26]} 21. Kh1 {[%emt 0:06:02]} Rad8 {[%emt 0:09:15]} 22. cxd6 {[%emt 0:03:41]} cxd6 {[%emt 0:01:59]} 23. Ne3 {[%emt 0:01:26]} Kh7 {[%emt 0:06:49]} 24. Rc1 {[%emt 0:06:26]} Rd7 {[%emt 0:08:27]} 25. Nf3 {[%emt 0:02:15]} Nh3 {[%emt 0:03:48]} 26. Qe2 {[%emt 0:06:18]} f4 {[%emt 0:03:36]} 27. Qc2+ {[%emt 0:04:29]} Ng6 {[%emt 0:00:36]} 28. gxf4 {[%emt 0:00:55]} Qxf4 {[%emt 0:03:43]} 29. Nh4 {[%emt 0:02:38]} Qxh4 {[%emt 0:15:42]} 30. Qc4 {[%emt 0:01:56]} Nxf2+ {[%emt 0:00:00]} 31. Rxf2 {[%emt 0:00:32]} Qxf2 {[%emt 0:00:00]} 32. Rf1 {[%emt 0:00:08]} Qxe3 {[%emt 0:00:00]} 33. Rxf8 {[%emt 0:00:12]} Nxf8 {[%emt 0:00:00]} 34. Qc2+ {[%emt 0:00:19]} e4 {[%emt 0:00:00]} 35. Qd1 {[%emt 0:00:58]} Qf3+ {[%emt 0:00:00]} 0-1

[Event "2nd German Women BLS 2024-25"]
[Site "Germany"]
[Date "2025.01.25"]
[Round "3.7"]
[White "Arnhold, Steffi"]
[Black "Groeschel, Karoline"]
[Result "1-0"]
[Annotator "RC"]
[ECO "B95"]
[WhiteElo "2152"]
[BlackElo "1985"]
[PlyCount "61"]
[EventDate "2025.01.22"]
[EventType "team-tourn"]
[EventCountry "GER"]
[SourceTitle "playchess.com"]
[Source "ChessBase"]
[SourceQuality "1"]
[WhiteTeam "Bavaria Regensburg 1881"]
[BlackTeam "1980 Gernsheim"]
[TimeControl "40/5400+30:1800+30"]

1. e4 {[%emt 0:00:03]} c5 {[%emt 0:00:08]} 2. Nf3 {[%emt 0:00:12]} e6 {[%emt 0:00:13]} 3. d4 {[%emt 0:00:06]} cxd4 {[%emt 0:00:04]} 4. Nxd4 {[%emt 0:00:05]} a6 {[%emt 0:00:04]} 5. Be2 {[%emt 0:00:16]} Nf6 {[%emt 0:00:59]} 6. Nc3 {[%emt 0:00:09]} Qc7 {[%emt 0:00:32]} 7. Qd3 {[%emt 0:01:03]} d6 {[%emt 0:07:38]} 8. Bg5 {[%emt 0:08:24]} Be7 {[%emt 0:03:30]} 9. f4 {[%emt 0:03:53]} b5 {[%emt 0:04:20]} 10. Bf3 {[%emt 0:03:23]} Bb7 {[%emt 0:00:18]} 11. O-O-O {[%emt 0:32:07]} b4 {[%emt 0:00:30]} 12. Bxf6 {[%emt 0:00:30]} gxf6 {[%emt 0:00:30]} 13. Nd5 {[%emt 0:00:30]} exd5 {[%emt 0:00:30]} 14. exd5 Nd7 {[%emt 0:00:30]} 15. Rhe1 {[%emt 0:01:00]} Ne5 {[%emt 0:45:01]} 16. fxe5 {[%emt 0:01:22]} fxe5 {[%emt 0:00:05]} 17. Nc6 {[%emt 0:02:07]} Bxc6 {[%emt 0:05:54]} 18. dxc6 {[%emt 0:00:14]} a5 {[%emt 0:02:03]} 19. Bd5 {[%emt 0:16:16]} Qc8 {[%emt 0:05:31]} 20. Rf1 {[%emt 0:01:25]} O-O {[%emt 0:00:16]} 21. Rf5 {[%emt 0:08:41]} Kh8 {[%emt 0:02:09]} 22. Rh5 {[%emt 0:01:56]} f5 {[%emt 0:04:20]} 23. Qh3 {[%emt 0:00:23]} Bg5+ {[%emt 0:01:18]} 24. Rxg5 {[%emt 0:00:35]} a4 {[%emt 0:00:09]} 25. Rh5 {[%emt 0:02:39]} Ra7 {[%emt 0:00:33]} 26. Rf1 {[%emt 0:01:33]} b3 {[%emt 0:01:03]} 27. Rhxf5 {[%emt 0:01:56]} Rxf5 {[%emt 0:02:23]} 28. Qxf5 {[%emt 0:01:41]} Qxf5 {[%emt 0:00:41]} 29. Rxf5 {[%emt 0:00:05]} bxa2 {[%emt 0:00:30]} 30. Bxa2 {[%emt 0:00:22]} Kg7 {[%emt 0:04:17]} 31. Rf7+ {[%emt 0:00:21]} 1-0

[Event "2nd German Women BLS 2024-25"]
[Site "Germany"]
[Date "2025.01.25"]
[Round "3.8"]
[White "Mueller, Riyanna"]
[Black "Bardorz, Jana"]
[Result "0-1"]
[Annotator "NA RC"]
[ECO "C54"]
[WhiteElo "1975"]
[BlackElo "2070"]
[PlyCount "54"]
[EventDate "2025.01.22"]
[EventType "team-tourn"]
[EventCountry "GER"]
[SourceTitle "playchess.com"]
[Source "ChessBase"]
[SourceQuality "1"]
[WhiteTeam "1980 Gernsheim"]
[BlackTeam "Bavaria Regensburg 1881"]
[TimeControl "40/5400+30:1800+30"]

1. e4 {[%emt 0:00:03]} e5 {[%emt 0:00:12]} 2. Nf3 {[%emt 0:00:07]} Nc6 {[%emt 0:00:10]} 3. Bc4 {[%emt 0:00:08]} Bc5 {[%emt 0:00:14]} 4. c3 {[%emt 0:00:12]} Nf6 {[%emt 0:00:06]} 5. d3 {[%emt 0:00:14]} d6 {[%emt 0:00:57]} 6. Nbd2 {[%emt 0:00:35]} a6 {[%emt 0:00:40]} 7. a4 {[%emt 0:00:34]} Ba7 {[%emt 0:02:05]} 8. O-O {[%emt 0:00:24]} O-O {[%emt 0:00:38]} 9. h3 {[%emt 0:07:00]} h6 {[%emt 0:00:28]} 10. Re1 {[%emt 0:03:09]} Be6 {[%emt 0:03:02]} 11. b4 {[%emt 0:08:26]} Re8 {[%emt 0:41:03]} 12. b5 {[%emt 0:00:30]} axb5 {[%emt 0:00:30]} 13. axb5 {[%emt 0:00:30]} Ne7 {[%emt 0:00:30]} 14. Bxe6 {[%emt 0:00:30]} fxe6 {[%emt 0:00:30]} 15. Bb2 {[%emt 0:00:30]} Ng6 {[%emt 0:00:30]} 16. d4 {[%emt 0:00:30]} exd4 17. cxd4 {[%emt 0:00:30]} Nh5 {[%emt 0:01:00]} 18. Ra4 {[%emt 0:35:55]} Nhf4 {[%emt 0:07:16]} 19. Re3 {[%emt 0:02:30]} Bb6 {[%emt 0:04:35]} 20. Nc4 {[%emt 0:01:06]} Rxa4 {[%emt 0:04:13]} 21. Qxa4 {[%emt 0:00:09]} Nh4 {[%emt 0:03:02]} 22. Nxb6 {[%emt 0:00:46]} Nfxg2 {[%emt 0:12:44]} 23. Nxh4 {[%emt 0:02:29]} Nxe3 {[%emt 0:00:41]} 24. fxe3 {[%emt 0:07:15]} Qxh4 {[%emt 0:00:41]} 25. Nc4 {[%emt 0:02:23]} Qe1+ {[%emt 0:01:10]} 26. Kg2 {[%emt 0:00:44]} Qe2+ {[%emt 0:01:03]} 27. Kg1 {[%emt 0:02:08]} Rf8 {[%emt 0:00:32]} 0-1

[Event "2nd German Women BLS 2024-25"]
[Site "Germany"]
[Date "2025.01.25"]
[Round "3.9"]
[White "Leuchsenring, Christina"]
[Black "Lukas, Anne"]
[Result "0-1"]
[Annotator "NA RC"]
[ECO "B02"]
[WhiteElo "1905"]
[BlackElo "2016"]
[PlyCount "132"]
[EventDate "2025.01.22"]
[EventType "team-tourn"]
[EventCountry "GER"]
[SourceTitle "playchess.com"]
[Source "ChessBase"]
[SourceQuality "1"]
[WhiteTeam "Bavaria Regensburg 1881"]
[BlackTeam "1980 Gernsheim"]
[TimeControl "40/5400+30:1800+30"]

1. e4 {[%emt 0:00:03]} d5 {[%emt 0:00:05]} 2. exd5 {[%emt 0:00:07]} Nf6 {[%emt 0:00:09]} 3. Nc3 {[%emt 0:01:28]} Nxd5 {[%emt 0:00:07]} 4. Bc4 {[%emt 0:04:00]} Nb6 {[%emt 0:01:48]} 5. Be2 {[%emt 0:04:58]} e5 {[%emt 0:00:23]} 6. Nf3 {[%emt 0:03:47]} Nc6 {[%emt 0:00:21]} 7. O-O {[%emt 0:05:10]} Be7 {[%emt 0:01:04]} 8. Re1 {[%emt 0:05:44]} a6 9. d3 O-O 10. Bf1 f6 11. Be3 Bg4 12. h3 Bh5 13. Be2 Bb4 14. a3 Bxc3 15. bxc3 Nd5 16. Bd2 Bf7 17. Rb1 Rb8 18. c4 Nde7 19. Bc3 Nf5 20. Nd2 Nfd4 {[%emt 0:08:43]} 21. Bf1 {[%emt 0:57:25]} b6 {[%emt 0:17:14]} 22. Be2 {[%emt 0:01:10]} Qd7 {[%emt 0:02:26]} 23. Bf3 {[%emt 0:01:28]} Rbe8 {[%emt 0:00:34]} 24. Bxc6 {[%emt 0:03:10]} Nxc6 {[%emt 0:00:06]} 25. Nb3 {[%emt 0:01:56]} Rd8 {[%emt 0:02:49]} 26. Qc1 {[%emt 0:03:49]} Rfe8 {[%emt 0:01:53]} 27. Bb2 {[%emt 0:02:02]} Qf5 {[%emt 0:00:45]} 28. Qe3 {[%emt 0:00:36]} Qg6 {[%emt 0:01:16]} 29. Qe4 {[%emt 0:00:50]} Ne7 {[%emt 0:01:29]} 30. Qxg6 {[%emt 0:00:33]} Nxg6 {[%emt 0:00:02]} 31. Re3 {[%emt 0:03:03]} Ne7 {[%emt 0:05:05]} 32. Bc3 {[%emt 0:00:38]} Nf5 {[%emt 0:00:17]} 33. Ree1 {[%emt 0:00:19]} Nd6 {[%emt 0:01:49]} 34. Nd2 {[%emt 0:00:45]} Rd7 {[%emt 0:04:57]} 35. f3 {[%emt 0:01:49]} Nf5 {[%emt 0:00:37]} 36. Nb3 {[%emt 0:01:12]} Red8 {[%emt 0:00:10]} 37. Kf2 {[%emt 0:00:25]} a5 {[%emt 0:00:35]} 38. a4 {[%emt 0:00:25]} Rd6 {[%emt 0:02:13]} 39. Nd2 {[%emt 0:01:23]} Nd4 {[%emt 0:01:50]} 40. Bxd4 {[%emt 0:00:22]} Rxd4 {[%emt 0:00:06]} 41. Nb3 {[%emt 0:31:01]} R4d6 {[%emt 0:31:10]} 42. Nc1 {[%emt 0:00:00]} Be8 {[%emt 0:00:00]} 43. Ra1 {[%emt 0:00:00]} Kf7 {[%emt 0:00:00]} 44. Ne2 {[%emt 0:00:00]} g6 {[%emt 0:00:00]} 45. Nc3 {[%emt 0:00:00]} Bc6 {[%emt 0:00:00]} 46. Re3 {[%emt 0:00:00]} h5 {[%emt 0:00:00]} 47. h4 {[%emt 0:00:00]} Rg8 {[%emt 0:00:00]} 48. Rae1 {[%emt 0:00:00]} Rd7 {[%emt 0:00:00]} 49. Ra1 {[%emt 0:00:00]} Re8 {[%emt 0:54:57]} 50. Rae1 {[%emt 0:00:00]} Rd4 {[%emt 0:00:00]} 51. g3 {[%emt 0:00:00]} Rd6 {[%emt 0:00:00]} 52. Nb5 {[%emt 0:01:09]} Bxb5 {[%emt 0:00:00]} 53. cxb5 {[%emt 0:00:03]} Rd4 {[%emt 0:00:00]} 54. Re4 {[%emt 0:00:47]} Red8 {[%emt 0:00:00]} 55. Rxd4 {[%emt 0:01:34]} Rxd4 {[%emt 0:00:00]} 56. Ra1 {[%emt 0:00:05]} Ke6 {[%emt 0:00:00]} 57. Ke3 {[%emt 0:00:24]} Rb4 {[%emt 0:00:00]} 58. Ra3 {[%emt 0:01:32]} Kd7 {[%emt 0:00:00]} 59. Kd2 {[%emt 0:00:14]} g5 {[%emt 0:00:00]} 60. hxg5 {[%emt 0:00:33]} fxg5 {[%emt 0:00:00]} 61. Kc1 {[%emt 0:02:34]} h4 {[%emt 0:00:00]} 62. c3 {[%emt 0:00:07]} hxg3 {[%emt 0:00:00]} 63. Ra2 {[%emt 0:00:20]} Rf4 {[%emt 0:00:00]} 64. Re2 {[%emt 0:00:29]} Rxf3 {[%emt 0:00:00]} 65. Rxe5 {[%emt 0:00:13]} g2 {[%emt 0:00:00]} 66. Rxg5 {[%emt 0:00:16]} Rf1+ {[%emt 0:00:00]} 0-1